lending/lending_fUSD_20240219
["ID","MTS","AMOUNT","RATE_DAILY","PERIOD"]
[314465973,1708368677921,-500.0,0.00047123,30]
[314465974,1708368677930,-500.0,0.00047123,30]
[314465975,1708368677940,-1236.68,0.00047123,30]
[314465976,1708368677950,-547.6,0.00047123,30]
[314465977,1708368677960,-1000.0,0.00047123,50]
[314465978,1708368677970,-1425.1,0.00047123,30]
[314465979,1708368677980,-564.527442,0.00047123,14]
[314465980,1708368677990,-362.672816,0.00047123,14]
[314465981,1708368678001,-500.0,0.00047123,30]
[314465982,1708368678010,-1902.0,0.00047123,30]
[314465983,1708368678020,-1223.76,0.00047123,30]
[314465984,1708368678032,-500.0,0.00047123,30]
[314465985,1708368678042,-564.527442,0.00047123,14]
[314465986,1708368678052,-728.44,0.00047123,30]
[314465987,1708368678062,-2315.58,0.00047123,30]
[314465988,1708368678072,-362.672816,0.00047123,14]
[314465989,1708368678082,-1914.39,0.00047123,30]
[314465990,1708368678097,-500.0,0.00047123,30]
[314465991,1708368678107,-2411.54,0.00047123,30]
[314465992,1708368678117,-500.0,0.00047123,30]
[314465993,1708368678127,-500.0,0.00047123,30]
[314465994,1708368678137,-500.0,0.00047123,30]
[314465995,1708368678146,-2093.02,0.00047123,30]
[314465996,1708368678156,-500.0,0.00047123,30]
[314465997,1708368678165,-500.0,0.00047123,30]
[314465998,1708368678175,-699.79,0.00047123,30]
[314465999,1708368678185,-500.0,0.00047123,30]
[314466000,1708368678194,-2508.62,0.00047123,30]
[314466001,1708368678204,-853.23,0.00047123,30]
[314466002,1708368678213,-739.51,0.00047123,30]
[314466003,1708368678222,-687.82,0.00047123,30]
[314466004,1708368678232,-500.0,0.00047123,30]
[314466005,1708368678241,-3294.84,0.00047123,30]
[314466006,1708368678252,-500.0,0.00047123,30]
[314466007,1708368678261,-2927.53,0.00047123,30]
[314466008,1708368678271,-690.84,0.00047123,30]
[314466009,1708368678280,-692.65,0.00047123,30]
[314466010,1708368678290,-500.0,0.00047123,30]
[314466011,1708368678300,-500.0,0.00047123,30]
[314466012,1708368678309,-500.0,0.00047123,30]
[314466013,1708368678318,-1700.56,0.00047123,30]
[314466014,1708368678328,-2601.84,0.00047123,30]
[314466015,1708368678337,-500.0,0.00047123,30]
[314466016,1708368678347,-500.0,0.00047123,30]
[314466017,1708368678356,-821.54,0.00047123,30]
[314466018,1708368678366,-10482.06,0.00047123,30]
[314466019,1708368678375,-606.93,0.00047123,30]
[314466020,1708368678385,-724.59,0.00047123,30]
[314466021,1708368678395,-5118.98,0.00047123,30]
[314466022,1708368678405,-1435.69,0.00047123,30]
[314466023,1708368678414,-500.0,0.00047123,30]
[314466024,1708368678429,-2720.12,0.00047123,30]
[314466025,1708368678438,-378.62626985,0.00047123,30]
[314466026,1708368678457,-171.70373015,0.00047123,30]
[314466027,1708368678466,-500.0,0.00047123,30]
[314466028,1708368678476,-500.0,0.00047123,30]
[314466029,1708368678485,-2104.04,0.00047123,30]
[314466030,1708368678495,-1556.30399261,0.00047123,30]
[314466031,1708368678508,-639.86600739,0.00047123,30]
[314466032,1708368678517,-128.96743141,0.00047123,30]
[314466033,1708368678534,-2325.33001138,0.00047123,30]
[314466034,1708368678546,-4650.07255721,0.00047123,30]
[314466035,1708368678556,-504.73,0.00047123,30]
[314466036,1708368678566,-723.4,0.00047123,30]
[314466037,1708368678576,-500.0,0.00047123,30]
[314466038,1708368678585,-500.0,0.00047123,30]
[314466039,1708368678594,-346.30766009,0.00047123,30]
[314466040,1708368678604,-500.0,0.00047123,30]
[314466041,1708368678613,-147.3885754,0.00047123,30]
[314466042,1708368679453,-778.976856,0.0003452,2]
[314466043,1708368679462,-1168.465284,0.00034794,2]
[314466044,1708368679472,-1557.953712,0.00034931,2]
[314466045,1708368679482,-1947.442141,0.00035068,2]
[314466046,1708368679491,-20.87597915,0.00035342,2]
[314466047,1708368679710,-2705.54301785,0.00035342,2]
[314466048,1708368679720,-807.08140027,0.00038808,2]
[314466049,1708368679730,-266.33700544,0.000433,2]
[314466050,1708368679740,-1009.94392205,0.00045644,10]
[314466051,1708368679750,-500.0,0.00046575,30]
[314466052,1708368679760,-500.0,0.00046575,30]
[314466053,1708368679770,-150.0,0.00046575,30]
[314466054,1708368679780,-500.0,0.00046575,30]
[314466055,1708368679790,-500.0,0.00046849,30]
[314466056,1708368679800,-500.0,0.00046849,30]
[314466057,1708368679810,-500.0,0.00046849,30]
[314466058,1708368679820,-500.0,0.00046849,30]
[314466059,1708368679830,-352.6114246,0.00047123,30]
[314466060,1708368679841,-1570.25,0.00047123,30]
[314466061,1708368679852,-500.0,0.00047123,30]
[314466062,1708368679862,-500.0,0.00047123,30]
[314466063,1708368679872,-948.25960656,0.00047123,30]
[314466064,1708368679884,-161.23039344,0.00047123,30]
[314466065,1708368679895,-424.98229846,0.00047123,30]
[314466066,1708368688424,1272.86,0.00023,2]
[314466067,1708368688455,2000.0,0.00023,2]
[314466068,1708368688476,2000.0,0.00023,2]
[314466069,1708368688498,2000.0,0.00023,2]
[314466070,1708368688521,2000.0,0.00023,2]
[314466071,1708368688541,2000.0,0.00023,2]
[314466072,1708368688562,2000.0,0.00023,2]
[314466073,1708368688582,2000.0,0.00023,2]
[314466074,1708368688604,2000.0,0.00023,2]
[314466075,1708368688625,2000.0,0.00023,2]
[314466076,1708368688659,70080.0,0.00023,2]
[314466077,1708368688684,50000.0,0.00023,2]
[314466078,1708368688707,818.67148885,0.00023,2]
[314466079,1708368688731,2000.0,0.00023,2]
[314466080,1708368688753,2000.0,0.00023,2]
[314466081,1708368688777,2000.0,0.00023,2]
[314466082,1708368688799,2000.0,0.00023,2]
[314466083,1708368688821,2000.0,0.00023,2]
[314466084,1708368688844,2000.0,0.00023,2]
[314466085,1708368688867,2000.0,0.00023,2]
[314466086,1708368688890,2000.0,0.00023,2]
[314466087,1708368688912,2000.0,0.00023,2]
[314466088,1708368688937,53374.0,0.00023,2]
[314466089,1708368688962,773467.51289918,0.00023,2]
[314466090,1708368688989,3529246.47228539,0.00023,2]
[314466091,1708368691318,589.74497027,0.00021,2]
[314466092,1708368691815,950.09298729,9e-05,2]
[314466093,1708368693680,166.24000001,0.00022999,2]
[314466094,1708368694382,154.69854635,0.0001,2]
[314466095,1708368695042,944.09585903,0.00022,2]
[314466096,1708368698370,6622.54990018,0.00011,2]
[314466097,1708368748971,150.0,0.00015,2]
[314466098,1708368748992,1742.49733195,0.00015,2]
[314466099,1708368796158,1458.38335766,0.0001305,2]
[314466100,1708368833853,324956.74189837,0.00023,2]
[314466102,1708368867762,206.81854059,0.0001,2]
[314466103,1708368926093,-20000.0,0.0002313,2]
[314466119,1708368959582,-3963.24308147,0.0002313,2]
[314466120,1708368959607,-6036.75691853,0.000232,2]
[314466121,1708368970514,150.0,0.00016712,2]
[314466139,1708369400899,-813.72,0.00023188,2]
[314466140,1708369400921,-150.0,0.00023199,2]
[314466141,1708369400943,-300.0,0.00023199,2]
[314466142,1708369400963,-736.28,0.000232,2]
[314466143,1708369401997,-2000.0,0.000232,2]
[314466144,1708369403422,-2000.0,0.000232,2]
[314466145,1708369404900,-2000.0,0.000232,2]
[314466146,1708369406040,-2000.0,0.000232,2]
[314466147,1708369407487,-2000.0,0.000232,2]
[314466148,1708369408480,-2000.0,0.000232,2]
[314466149,1708369409679,-2000.0,0.000232,2]
[314466150,1708369428158,-101.32300694,0.000232,2]
[314466155,1708369506779,186.07,0.00024915,10]
[314466157,1708369533136,-155.62170469,0.0002415,2]
[314466158,1708369533155,-316.81708283,0.0002425,2]
[314466159,1708369533174,-200.0,0.00024912,2]
[314466160,1708369533193,-150.0,0.00024967,2]
[314466161,1708369533212,-250.0,0.00024967,2]
[314466162,1708369533230,-500.0,0.00024969,2]
[314466163,1708369533256,-13783.4213,0.0002499,2]
[314466164,1708369533278,-626.93,0.00024993,2]
[314466165,1708369533298,-1709.8265433,0.00025,2]
[314466166,1708369533319,-550.0,0.00025,3]
[314466167,1708369533338,-2807.23857101,0.00025,2]
[314466168,1708369533357,-851.24473156,0.00025055,2]
[314466169,1708369533376,-834.34,0.00025056,2]
[314466170,1708369533393,-4640.25829047,0.0002508,2]
[314466171,1708369533413,-5961.35614176,0.00025089,4]
[314466174,1708369625896,-200.0,0.00024964,2]
[314466175,1708369625917,-851.24473156,0.00025,2]
[314466176,1708369625939,-208.76,0.0002506,2]
[314466177,1708369625960,-150.0,0.00025088,2]
[314466178,1708369625980,-150.0,0.00025088,2]
[314466179,1708369626001,-106.54005291,0.00025089,4]
[314466180,1708369628112,-5552.57413256,0.00025089,4]
[314466181,1708369639103,-7108.35212736,0.00025089,4]
[314466182,1708369639124,-19089.82613237,0.0002509,2]
[314466183,1708369642107,-851.24473156,0.00025088,2]
[314466184,1708369642128,-17581.39314046,0.0002509,2]
[314466185,1708369642149,-13213.55374244,0.0002509,2]
[314466186,1708369642170,-299.99,0.0002509,7]
[314466187,1708369642193,-499.99,0.0002509,2]
[314466188,1708369642215,-626.93,0.00025125,2]
[314466189,1708369642236,-2000.0,0.0002514,2]
[314466190,1708369642258,-150.0,0.00025145,2]
[314466191,1708369642285,-1928.01,0.00025175,2]
[314466192,1708369642310,-452.79,0.00025246,3]
[314466193,1708369642335,-626.93,0.00025256,2]
[314466194,1708369642359,-23900.0,0.00025358,2]
[314466195,1708369642380,-977.022,0.00025358,2]
[314466196,1708369642406,-626.93,0.00025388,2]
[314466197,1708369642427,-813.72,0.00025452,2]
[314466198,1708369642447,-500.0,0.00025486,2]
[314466199,1708369642467,-1744.82,0.00025519,2]
[314466200,1708369642489,-626.93,0.0002552,2]
[314466201,1708369642512,-626.93,0.00025651,2]
[314466202,1708369642532,-250.0,0.00025655,2]
[314466203,1708369642553,-626.93,0.00025783,2]
[314466204,1708369642574,-626.93,0.00025914,2]
[314466205,1708369642594,-198.69,0.00025933,2]
[314466206,1708369642616,-155.62170469,0.0002604,2]
[314466207,1708369642636,-626.93,0.00026046,2]
[314466208,1708369642656,-150.0,0.00026079,2]
[314466209,1708369642677,-1964.7,0.00026115,2]
[314466210,1708369642698,-626.93,0.00026177,2]
[314466211,1708369642719,-19952.32103714,0.000263,2]
[314466212,1708369642740,-626.93,0.00026309,2]
[314466213,1708369642760,-1026.24289639,0.000264,2]
[314466218,1708369748094,-500.0,0.00026064,2]
[314466219,1708369748115,-150.0,0.00026064,3]
[314466220,1708369748135,-535.40994288,0.00026398,2]
[314466221,1708369748156,-558.03427147,0.00026399,2]
[314466222,1708369748181,-150.0,0.00026399,2]
[314466223,1708369748211,-22235.77094607,0.000264,2]
[314466224,1708369748231,-300.0,0.00026437,2]
[314466225,1708369748256,-626.93,0.0002644,2]
[314466226,1708369748277,-626.93,0.00026572,2]
[314466227,1708369748340,10286.04783958,0.00026008,2]
[314466228,1708369753196,-13613.95216042,0.00026008,2]
[314466229,1708369753222,-626.93,0.00026703,2]
[314466230,1708369753242,-208.76,0.00026703,2]
[314466231,1708369753261,-166.76,0.00026719,2]
[314466232,1708369753282,-1144.54,0.00026762,2]
[314466233,1708369753304,-170.40616824,0.00026803,3]
[314466234,1708369753327,-159.95697082,0.00026803,3]
[314466235,1708369753354,-626.93,0.00026835,2]
[314466236,1708369753373,-769.56774036,0.00026888,2]
[314466237,1708369753393,-281.69798841,0.00026888,2]
[314466238,1708369753413,-331.13775653,0.00026889,10]
[314466239,1708369753434,-5780.7223539,0.00026889,4]
[314466240,1708369753453,-134955.00886132,0.0002689,2]
[314466244,1708369822996,748.75,0.00024642,2]
[314466255,1708369832389,-155.0,0.00026194,2]
[314466256,1708369832399,-250.0,0.00026195,2]
[314466257,1708369832409,-548.43955868,0.00026889,2]
[314466258,1708369832419,-24983.76855676,0.0002689,2]
[314466259,1708369832429,-2000.0,0.0002689,2]
[314466260,1708369832440,-200.0,0.0002689,2]
[314466261,1708369832449,-1144.54,0.00026903,2]
[314466262,1708369832459,-748.75,0.00026906,2]
[314466263,1708369832468,-607.6755386,0.0002695,3]
[314466264,1708369832479,-626.93,0.00026966,2]
[314466265,1708369832489,-150.0,0.00027,2]
[314466266,1708369832498,-600.0,0.00027,3]
[314466267,1708369832508,-177.53,0.00027,2]
[314466268,1708369832518,-1144.54,0.00027044,2]
[314466269,1708369832527,-1078.75936314,0.0002705,2]
[314466270,1708369832537,-626.93,0.00027098,2]
[314466271,1708369832546,-1144.54,0.00027184,2]
[314466272,1708369832556,-34528.10157398,0.000272,2]
[314466273,1708369832566,-150.0,0.0002722,4]
[314466274,1708369832576,-159.95697082,0.00027225,3]
[314466275,1708369832586,-626.93,0.00027229,2]
[314466276,1708369832595,-1144.54,0.00027325,2]
[314466277,1708369832605,-240.17,0.00027328,2]
[314466278,1708369832614,-186.07,0.00027356,10]
[314466279,1708369832624,-626.93,0.00027361,2]
[314466280,1708369832634,-198.69,0.00027374,2]
[314466281,1708369832644,-155.0,0.00027397,2]
[314466282,1708369832653,-400.0,0.00027452,2]
[314466283,1708369832663,-1144.54,0.00027466,2]
[314466284,1708369832673,-800.0,0.00027479,2]
[314466285,1708369832683,-626.93,0.00027493,2]
[314466286,1708369832692,-8259.31951894,0.000275,2]
[314466287,1708369832702,-150.0,0.00027548,2]
[314466288,1708369832711,-177.53,0.00027548,2]
[314466289,1708369832721,-1144.54,0.00027607,2]
[314466290,1708369832732,-880.0,0.0002768,2]
[314466291,1708369832742,-1259.98996334,0.00027746,2]
[314466292,1708369832751,-1144.54,0.00027748,2]
[314466293,1708369832761,-300.0,0.00027807,2]
[314466294,1708369832771,-1144.54,0.00027889,2]
[314466295,1708369832781,-246.19690994,0.000279,2]
[314466296,1708369832791,-157.37229919,0.0002791,2]
[314466297,1708369832800,-199.11377918,0.0002791,2]
[314466298,1708369832810,-409.02465674,0.0002791,2]
[314466299,1708369832820,-152.06641792,0.0002791,2]
[314466300,1708369832830,-171.59016075,0.0002791,2]
[314466301,1708369832840,-246.19690994,0.00027915,2]
[314466302,1708369832850,-155.62170469,0.0002793,2]
[314466303,1708369832861,-25.49611737,0.0002793,2]
[314466304,1708369832874,-220.70079257,0.0002793,2]
[314466305,1708369832884,-511.23245593,0.0002793,2]
[314466306,1708369832894,-221.05698277,0.0002799,2]
[314466307,1708369832903,-331.13775651,0.00027999,15]
[314466308,1708369832913,-331.13775653,0.00027999,15]
[314466309,1708369832923,-331.13775653,0.00027999,15]
[314466310,1708369832932,-331.13775653,0.00027999,15]
[314466311,1708369832942,-439.19479976,0.00027999,15]
[314466312,1708369832952,-439.19479976,0.00027999,15]
[314466313,1708369832962,-439.19479976,0.00027999,15]
[314466314,1708369832972,-439.19479976,0.00027999,15]
[314466315,1708369832982,-439.19479976,0.00027999,15]
[314466316,1708369832993,-439.19479976,0.00027999,15]
[314466317,1708369833002,-439.19479976,0.00027999,15]
[314466318,1708369833012,-439.19479976,0.00027999,15]
[314466319,1708369833022,-439.19479973,0.00027999,15]
[314466320,1708369833031,-439.19479976,0.00027999,15]
[314466321,1708369833041,-12944.29804038,0.00028,2]
[314466322,1708369833051,-55936.71234306,0.00028,2]
[314466323,1708369833068,-20767.59999998,0.00028,2]
[314466324,1708369833141,-30.26842469,0.00028,2]
[314466325,1708369835714,-1042.36206145,0.00028,2]
[314466336,1708369836028,-964.31340468,0.00028,2]
[314466337,1708369836049,-25472.64443945,0.00028,2]
[314466338,1708369836401,-39734.64588385,0.00028,2]
[314466339,1708369836414,-8805.43992604,0.00028,2]
[314466340,1708369836426,-519.0185,0.00028,2]
[314466341,1708369836438,-761.45,0.00028,2]
[314466342,1708369836450,-492.725,0.00028,2]
[314466343,1708369836480,-1432216.86534581,0.00028,2]
[314466344,1708369836491,-1144.54,0.0002803,2]
[314466345,1708369836501,-221.05698277,0.0002809,2]
[314466346,1708369836512,-165.94634963,0.00028096,2]
[314466347,1708369836522,-177.53,0.00028096,2]
[314466348,1708369836533,-143418.00465383,0.000281,2]
[314466349,1708369836543,-4927.0,0.0002811,4]
[314466350,1708369836553,-1144.54,0.0002817,2]
[314466351,1708369836563,-240.17,0.00028295,2]
[314466352,1708369836573,-1144.54,0.00028311,2]
[314466353,1708369836583,-208.76,0.00028347,2]
[314466354,1708369836593,-1144.54,0.00028452,2]
[314466355,1708369836603,-1144.54,0.00028593,2]
[314466356,1708369836613,-177.53,0.00028644,2]
[314466357,1708369836623,-1144.54,0.00028734,2]
[314466358,1708369836633,-155.0,0.00028767,2]
[314466359,1708369836643,-198.69,0.00028815,2]
[314466360,1708369836653,-1144.54,0.00028875,2]
[314466361,1708369836663,-650.0,0.00029,3]
[314466362,1708369836673,-1144.54,0.00029016,2]
[314466363,1708369836682,-210.0,0.00029039,2]
[314466364,1708369836692,-1144.54,0.00029156,2]
[314466365,1708369836702,-748.75,0.0002917,2]
[314466366,1708369836712,-177.53,0.00029192,2]
[314466367,1708369836722,-240.17,0.00029261,2]
[314466368,1708369836733,-1144.54,0.00029297,2]
[314466369,1708369836743,-150.0,0.00029336,2]
[314466370,1708369836752,-1144.54,0.00029438,2]
[314466371,1708369836763,-182.35,0.00029487,2]
[314466372,1708369836773,-607.67553856,0.00029511,4]
[314466373,1708369836782,-159.95697079,0.00029618,4]
[314466374,1708369836792,-206.0,0.00029675,2]
[314466375,1708369836801,-177.53,0.0002974,2]
[314466376,1708369836811,-247.77235432,0.000299,4]
[314466377,1708369836821,-159.95697079,0.00029956,4]
[314466378,1708369836830,-208.76,0.00029991,2]
[314466379,1708369836840,-1181.26497298,0.0003,4]
[314466380,1708369836851,-4483.94312039,0.0003,2]
[314466381,1708369836860,-394.33908013,0.0003,2]
[314466382,1708369836870,-74168.29469035,0.0003,2]
[314466383,1708369836879,-155.0,0.0003,4]
[314466384,1708369836889,-352.12828762,0.0003,2]
[314466385,1708369836898,-735.83021988,0.0003,2]
[314466386,1708369836907,-1581.35323041,0.000301,2]
[314466387,1708369836916,-151.11,0.00030137,2]
[314466388,1708369836925,-155.0,0.00030137,2]
[314466389,1708369836935,-240.17,0.00030228,2]
[314466390,1708369836945,-198.69,0.00030255,2]
[314466391,1708369836954,-177.53,0.00030288,2]
[314466392,1708369836963,-177.53,0.00030836,2]
[314466393,1708369836972,-7664.2639786,0.00031,2]
[314466394,1708369836983,-523.67552168,0.00031,7]
[314466395,1708369836993,-700.0,0.00031,3]
[314466396,1708369837002,-880.0,0.0003114,2]
[314466397,1708369837012,-240.17,0.00031194,2]
[314466398,1708369837021,-157.37229917,0.00031207,2]
[314466399,1708369837030,-177.53,0.00031384,2]
[314466400,1708369837039,-748.75,0.00031434,2]
[314466401,1708369837049,-155.0,0.00031507,2]
[314466402,1708369837058,-2574.0,0.000316,3]
[314466403,1708369837068,-17264.0,0.000316,3]
[314466404,1708369837077,-208.76,0.00031635,2]
[314466405,1708369837087,-198.69,0.00031696,2]
[314466406,1708369837098,-151.11,0.00031703,2]
[314466407,1708369837108,-514.02592652,0.000318,3]
[314466408,1708369837117,-177.53,0.00031932,2]
[314466409,1708369837127,-293.0,0.00031943,3]
[314466410,1708369837136,-607.67553856,0.00032073,5]
[314466411,1708369837146,-12874.85934115,0.00032125,2]
[314466412,1708369837155,-240.17,0.00032161,2]
[314466413,1708369837165,-247.77235427,0.00032268,5]
[314466414,1708369837175,-159.95697079,0.00032434,6]
[314466415,1708369837184,-177.53,0.0003248,2]
[314466416,1708369837194,-173.53380298,0.000325,3]
[314466417,1708369837203,-159.95697079,0.00032687,6]
[314466418,1708369837216,-1002.88356407,0.000328,2]
[314466419,1708369837238,-155.0,0.00032877,2]
[314466420,1708369837250,-5001.0,0.000329,2]
[314466421,1708369837260,-7310.44665308,0.00033,2]
[314466422,1708369837270,-750.0,0.00033,3]
[314466423,1708369837280,-589.54893283,0.00033,5]
[314466424,1708369837290,-177.53,0.00033028,2]
[314466425,1708369837299,-240.17,0.00033127,2]
[314466426,1708369837309,-198.69,0.00033137,2]
[314466427,1708369837320,-151.11,0.00033268,2]
[314466428,1708369837333,-208.76,0.00033279,2]
[314466429,1708369837343,-206.0,0.00033466,9]
[314466430,1708369837353,-397.1919238,0.000335,2]
[314466431,1708369837363,-150.0,0.00033527,2]
[314466432,1708369837373,-177.53,0.00033576,2]
[314466433,1708369837382,-748.75,0.00033698,2]
[314466434,1708369837391,-150.0,0.0003404,2]
[314466435,1708369837401,-150.0,0.0003404,2]
[314466436,1708369837410,-177.53,0.00034124,2]
[314466437,1708369837420,-155.0,0.00034247,2]
[314466438,1708369837430,-150.0,0.000344,2]
[314466439,1708369837439,-198.60596199,0.00034421,2]
[314466440,1708369837448,-157.37229917,0.00034503,2]
[314466441,1708369837458,-4108.928903,0.0003452,2]
[314466442,1708369837467,-3125.039794,0.0003452,2]
[314466443,1708369837476,-333.54,0.00034521,2]
[314466444,1708369837488,-198.69,0.00034578,2]
[314466445,1708369837498,-150.0,0.00034588,2]
[314466446,1708369837507,-880.0,0.000346,2]
[314466447,1708369837517,-607.67553856,0.00034634,7]
[314466448,1708369837526,-247.77235427,0.00034636,7]
[314466449,1708369837535,-177.53,0.00034672,2]
[314466450,1708369837545,-6163.393355,0.00034794,2]
[314466451,1708369837554,-4687.559691,0.00034794,2]
[314466452,1708369837563,-151.11,0.00034834,2]
[314466453,1708369837572,-2030.60530176,0.000349,2]
[314466454,1708369837581,-2030.60530175,0.000349,2]
[314466455,1708369837590,-2030.60530175,0.000349,2]
[314466456,1708369837599,-2030.60530175,0.000349,2]
[314466457,1708369837609,-2030.60530175,0.000349,2]
[314466458,1708369837618,-512.01136984,0.000349,2]
[314466459,1708369837627,-8217.857807,0.00034931,2]
[314466460,1708369837636,-6250.079589,0.00034931,2]
[314466461,1708369837646,-150.0,0.00034948,2]
[314466462,1708369837655,-999.999999,0.00035,5]
[314466463,1708369837664,-3356.30427104,0.00035,2]
[314466464,1708369837673,-800.0,0.00035,3]
[314466465,1708369837683,-12040.19497094,0.00035,2]
[314466466,1708369837692,-557.56157517,0.00035,2]
[314466467,1708369837701,-216.00292517,0.00035,2]
[314466468,1708369837711,-10272.322259,0.00035068,2]
[314466469,1708369837720,-7812.599486,0.00035068,2]
[314466470,1708369837731,-834.34,0.00035078,2]
[314466471,1708369837741,-150.0,0.00035136,2]
[314466472,1708369837750,-243.0,0.00035137,3]
[314466473,1708369837760,-177.53,0.0003522,2]
[314466474,1708369837770,-159.95697079,0.00035249,7]
[314466475,1708369837779,-352.1282876,0.00035258,2]
[314466476,1708369837789,-735.83021986,0.00035258,2]
[314466477,1708369837798,-205.0,0.00035342,2]
[314466478,1708369837808,-14381.251163,0.00035342,2]
[314466479,1708369837818,-10937.63928,0.00035342,2]
[314466480,1708369837827,-159.95697079,0.00035418,7]
[314466481,1708369837837,-150.0,0.00035496,2]
[314466482,1708369837846,-1000.0,0.00035503,2]
[314466483,1708369837856,-52188.84803171,0.000356,2]
[314466485,1708369838649,-471.56095952,0.000356,2]
[314466486,1708369838661,-263.40803857,0.000356,2]
[314466487,1708369838682,-445.20758956,0.000356,2]
[314466488,1708369838694,-998.80882928,0.000356,2]
[314466489,1708369838705,-275.96458678,0.000356,2]
[314466490,1708369840090,-1670.64200239,0.000356,2]
[314466491,1708369840128,-6938.46057468,0.000356,2]
[314466492,1708369840165,-462.78370766,0.000356,2]
[314466493,1708369840176,-13624.1274363,0.000356,2]
[314466494,1708369840189,-45367.21937419,0.000356,2]
[314466495,1708369840199,-1500.0,0.00035616,10]
[314466496,1708369840210,-155.0,0.00035617,2]
[314466497,1708369840221,-170.40616824,0.0003565,7]
[314466498,1708369840236,-222.0878001,0.00035684,2]
[314466499,1708369840247,-257.77454372,0.000357,2]
[314466500,1708369840258,-18797.54,0.000357,7]
[314466501,1708369840269,-177.53,0.00035768,2]
[314466502,1708369840280,-333.54,0.00035798,2]
[314466503,1708369840292,-2030.60530175,0.00035825,2]
[314466504,1708369840303,-748.75,0.00035962,2]
[314466505,1708369840312,-6202.68980239,0.00036,2]
[314466506,1708369840323,-645.36,0.00036,2]
[314466507,1708369840333,-17997.65,0.00036,2]
[314466508,1708369840344,-198.69,0.00036018,2]
[314466509,1708369840353,-150.0,0.00036044,2]
[314466510,1708369840363,-1108.00930486,0.000362,2]
[314466511,1708369840373,-177.53,0.00036316,2]
[314466512,1708369840383,-27888.47947995,0.00036389,2]
[314466513,1708369840392,-27888.47947991,0.00036389,2]
[314466514,1708369840402,-27888.47947991,0.00036389,2]
[314466515,1708369840411,-27888.47947991,0.00036389,2]
[314466516,1708369840422,-27888.47947991,0.00036389,2]
[314466517,1708369840431,-151.11,0.00036399,2]
[314466518,1708369840440,-1928.01,0.00036407,2]
[314466519,1708369840462,-150.0,0.00036592,2]
[314466520,1708369840472,-157.40371238,0.0003678,2]
[314466521,1708369840486,-989.92027335,0.00036798,2]
[314466522,1708369840496,-989.92027327,0.00036798,2]
[314466523,1708369840506,-989.92027327,0.00036798,2]
[314466524,1708369840515,-989.92027327,0.00036798,2]
[314466525,1708369840524,-989.92027327,0.00036798,2]
[314466526,1708369840534,-989.92027327,0.00036846,2]
[314466527,1708369840543,-177.53,0.00036864,2]
[314466528,1708369840553,-962.42961638,0.000369,10]
[314466529,1708369840563,-150.0,0.00036986,2]
[314466530,1708369840572,-300.0,0.00036986,7]
[314466531,1708369840581,-450.0,0.00036986,12]
[314466532,1708369840591,-600.0,0.00036986,17]
[314466533,1708369840600,-750.0,0.00036986,22]
[314466534,1708369840610,-900.0,0.00036986,27]
[314466535,1708369840619,-1040.47420124,0.00036986,32]
[314466536,1708369840629,-3496.0446028,0.00037,15]
[314466537,1708369840638,-850.0,0.00037,3]
[314466538,1708369840648,-247.77235427,0.00037004,8]
[314466539,1708369840657,-333.54,0.00037075,2]
[314466540,1708369840667,-178.83894219,0.0003714,2]